bitfinex/quotes_SOLUSD_20241209
["timestamp","ask_amount","ask_price","bid_price","bid_amount"]
[1733763872369,3.84510858,225.79,225.69,0.25098]
[1733763873259,3.3216,225.79,225.69,0.91540127]
[1733763873457,0.5390594,225.8,225.69,0.91540127]
[1733763873659,0.5390594,225.8,225.71,0.25098]
[1733763873958,0.5390594,225.8,225.75,0.12549]
[1733763874156,0.5390594,225.8,225.75,6.19968886]
[1733763874855,0.5390594,225.8,225.78,0.12549]
[1733763875073,0.5390594,225.8,225.79,6.04773664]
[1733763875235,0.5390594,225.8,225.79,0.25098]
[1733763875945,0.5390594,225.8,225.77,6.3016]
[1733763876475,0.5390594,225.8,225.74,1.5825]
[1733763877858,0.5390594,225.8,225.71,6.3016]
[1733763877859,20.0,225.77,225.71,6.3016]
[1733763878065,0.52350858,225.76,225.71,6.3016]
[1733763879656,20.0,225.73,225.69,1.5908]
[1733763881056,23.3226,225.73,225.69,1.5908]
[1733763881242,23.3226,225.73,225.67,0.25098]
[1733763881447,20.0,225.69,225.66,6.2354]
[1733763881668,0.52350858,225.68,225.64,1.6645]
[1733763881884,20.0,225.69,225.64,1.6645]
[1733763882044,20.0,225.7,225.64,1.6645]
[1733763882447,20.0,225.7,225.61,6.6215]
[1733763882448,24.30039258,225.69,225.61,6.6215]
[1733763882654,20.0,225.66,225.61,6.6215]
[1733763882866,0.52350858,225.65,225.59,1.6645]
[1733763883062,3.3238,225.64,225.59,1.6645]
[1733763883271,0.52350858,225.63,225.59,1.6645]
[1733763883481,3.3238,225.64,225.59,1.6645]
[1733763885460,3.3238,225.64,225.6,0.12549]
[1733763886185,3.3238,225.64,225.59,1.6645]
[1733763887575,3.3238,225.64,225.6,0.12549]
[1733763888583,3.3238,225.64,225.59,1.6645]
[1733763889192,3.3238,225.64,225.6,0.12549]
[1733763889370,20.0,225.66,225.6,0.25098]
[1733763890085,3.84720858,225.65,225.59,1.6645]
[1733763890395,3.84720858,225.65,225.56,6.6215]
[1733763890550,3.84720858,225.65,225.57,0.25098]
[1733763890880,3.84720858,225.65,225.56,6.6215]
[1733763890881,20.0,225.61,225.56,6.6215]
[1733763891383,20.0,225.61,225.54,1.6404]
[1733763891384,0.52350858,225.6,225.54,1.6404]
[1733763891551,0.52350858,225.6,225.5,6.3491]
[1733763891748,23.3238,225.65,225.53,0.12549]
[1733763891976,23.3238,225.65,225.53,0.79028841]
[1733763892396,0.52350858,225.64,225.53,0.79028841]
[1733763892765,0.52350858,225.64,225.54,0.12549]
[1733763894400,0.52350858,225.64,225.53,0.79028841]
[1733763894401,0.52350858,225.64,225.52,0.25098]
[1733763894763,0.52350858,225.64,225.5,6.3491]
[1733763894764,20.0,225.61,225.5,6.3491]
[1733763894992,0.52350858,225.6,225.5,6.3491]
[1733763895183,0.52350858,225.6,225.51,0.12549]
[1733763895797,0.52350858,225.6,225.5,6.3491]
[1733763896100,3.3246,225.59,225.5,6.3491]
[1733763896270,3.3246,225.59,225.51,0.12549]
[1733763896799,3.3246,225.59,225.51,0.25098]
[1733763897392,20.0,225.51,225.41,5.74646644]
[1733763897603,20.0,225.51,225.4,8.1092]
[1733763898094,20.0,225.51,225.41,0.12549]
[1733763898472,0.52350858,225.5,225.41,0.12549]
[1733763898670,0.52350858,225.5,225.4,8.1092]
[1733763899185,20.0,225.47,225.4,8.1092]
[1733763899581,20.0,225.47,225.41,0.12549]
[1733763900188,20.0,225.47,225.4,8.1092]
[1733763900504,20.52350858,225.47,225.41,0.12549]
[1733763900667,20.0,225.47,225.41,0.12549]
[1733763901269,20.0,225.47,225.41,0.25098]
[1733763901769,3.3257,225.52,225.41,0.25098]
[1733763901968,0.52350858,225.51,225.41,0.25098]
[1733763902180,3.3257,225.52,225.41,0.91620472]
[1733763902989,3.3251,225.56,225.43,0.25098]
[1733763903191,3.3251,225.56,225.44,14.27647127]
[1733763903470,3.3251,225.56,225.45,0.91606338]
[1733763904089,3.84800858,225.6,225.5,0.25098]
[1733763904295,3.84800858,225.6,225.5,8.07388]
[1733763905592,23.3245,225.6,225.5,8.07388]
[1733763905769,3.3245,225.6,225.5,22.35035127]
[1733763906299,3.3245,225.6,225.5,8.07388]
[1733763912113,0.52350858,225.62,225.52,0.12549]
[1733763912309,20.0,225.63,225.54,0.25098]
[1733763912514,3.3233,225.68,225.56,0.25098]
[1733763912690,0.52350858,225.67,225.56,0.25098]
[1733763913282,3.3233,225.68,225.58,0.25098]
[1733763913611,3.3233,225.68,225.6,0.25098]
[1733763913787,3.3228,225.72,225.6,8.08358]
[1733763913984,3.3228,225.72,225.61,0.66464028]
[1733763914326,3.3228,225.72,225.62,0.25098]
[1733763914692,3.3228,225.72,225.64,0.25098]
[1733763915309,3.3228,225.72,225.64,0.12549]
[1733763915595,0.52350858,225.71,225.64,0.12549]
[1733763916187,24.30039258,225.71,225.64,0.12549]
[1733763916809,3.3228,225.72,225.62,0.12549]
[1733763917123,3.84630858,225.72,225.62,0.12549]
[1733763918385,20.0,225.68,225.61,0.25098]
[1733763918590,20.0,225.68,225.6,7.8326]
[1733763918591,24.30039258,225.67,225.6,7.8326]
[1733763918826,20.0,225.64,225.55,7.8792]
[1733763919199,0.52350858,225.63,225.55,7.8792]
[1733763919392,0.52350858,225.63,225.5,0.66480713]
[1733763919590,0.52350858,225.63,225.49,0.12549]
[1733763919803,0.52350858,225.63,225.48,8.40581579]
[1733763920320,3.84760858,225.63,225.49,0.12549]
[1733763920528,23.776884,225.62,225.48,8.40581579]
[1733763920693,20.0,225.59,225.48,7.7409]
[1733763920890,20.0,225.55,225.48,7.7409]
[1733763921137,24.30039258,225.58,225.48,7.7409]
[1733763921289,0.52350858,225.62,225.48,7.7409]
[1733763921490,20.0,225.59,225.48,7.7409]
[1733763921717,20.0,225.59,225.49,0.12549]
[1733763922825,6.4027,225.67,225.44,11.0892]
[1733763922826,0.52350858,225.7,225.59,0.25098]
[1733763923128,6.6445,225.75,225.61,0.12549]
[1733763923332,0.52350858,225.74,225.63,0.25098]
[1733763923913,43.776884,225.72,225.63,0.25098]
[1733763924201,0.52350858,225.71,225.63,0.25098]
[1733763925522,23.776884,225.72,225.63,0.25098]
[1733763925707,3.3225,225.73,225.63,0.91558484]
[1733763926720,3.3218,225.78,225.63,0.91558484]
[1733763927035,0.5390594,225.8,225.67,0.25098]
[1733763927214,0.5390594,225.8,225.69,0.25098]
[1733763928321,20.0,225.77,225.67,0.12549]
[1733763928626,20.0,225.73,225.63,0.12549]
[1733763928921,24.30039258,225.72,225.63,0.12549]
[1733763929228,24.30039258,225.72,225.62,6.1403]
[1733763929736,24.30039258,225.72,225.63,0.12549]
[1733763930301,6.6433,225.79,225.63,0.12549]
[1733763930302,20.0,225.76,225.63,0.12549]
[1733763930602,24.30039258,225.76,225.64,0.12549]
[1733763930922,3.322,225.77,225.64,0.12549]
[1733763931120,0.52350858,225.76,225.64,0.12549]
[1733763931505,0.52350858,225.76,225.63,0.25098]
[1733763932121,20.0,225.73,225.63,0.25098]
[1733763932331,20.0,225.73,225.63,0.91550939]
[1733763933236,20.0,225.73,225.63,15.19198066]
[1733763933542,3.322,225.77,225.65,0.25098]
[1733763933729,3.322,225.77,225.67,0.25098]
[1733763934606,3.322,225.77,225.65,0.25098]
[1733763935305,3.322,225.77,225.65,0.9154679]
[1733763936340,24.3159434,225.8,225.69,0.25098]
[1733763936531,0.5390594,225.8,225.71,0.25098]
[1733763936730,0.5390594,225.8,225.73,0.25098]
[1733763937913,0.5390594,225.8,225.75,0.25098]
[1733763938545,0.5390594,225.8,225.77,14.52745127]
[1733763938749,0.5390594,225.8,225.75,0.12549]
[1733763938750,0.5390594,225.8,225.79,0.25098]
[1733763939240,0.5390594,225.8,225.79,0.12549]
[1733763939451,0.5390594,225.8,225.73,0.12549]
[1733763939614,0.5390594,225.8,225.73,0.25098]
[1733763940545,0.5390594,225.8,225.72,6.4909]
[1733763940913,0.5390594,225.8,225.73,0.12549]
[1733763941728,0.5390594,225.8,225.73,0.25098]
[1733763942445,0.5390594,225.8,225.75,0.25098]
[1733763943037,0.5390594,225.8,225.73,0.12549]
[1733763943249,0.5390594,225.8,225.73,0.25098]
[1733763945544,0.5390594,225.8,225.72,6.4909]
[1733763945746,0.5390594,225.8,225.7,1.6475]
[1733763945747,20.0,225.78,225.7,1.6475]
[1733763945945,20.0,225.74,225.67,6.4511]
[1733763946455,0.52350858,225.73,225.65,1.5032]
[1733763946747,20.0,225.7,225.62,6.4511]
[1733763947456,23.776884,225.69,225.62,6.4511]
[1733763947639,20.0,225.66,225.59,1.5032]
[1733763947951,20.0,225.66,225.6,0.12549]
[1733763948334,20.0,225.66,225.59,1.5032]
[1733763948538,0.52350858,225.65,225.59,1.5032]
[1733763948844,23.3235,225.66,225.59,1.5032]
[1733763949029,0.52350858,225.65,225.59,1.5032]
[1733763949926,0.52350858,225.65,225.6,0.12549]
[1733763950133,20.0,225.62,225.53,1.6521]
[1733763950333,0.52350858,225.61,225.53,1.6521]
[1733763950528,20.0,225.58,225.51,6.0418]
[1733763951163,20.0,225.58,225.52,0.12549]
[1733763951937,20.0,225.58,225.52,0.25098]
[1733763955251,20.0,225.54,225.48,1.6521]
[1733763955446,20.0,225.54,225.46,6.5711]
[1733763955447,20.0,225.54,225.47,0.12549]
[1733763956443,20.0,225.54,225.47,0.25098]
[1733763956946,20.0,225.54,225.47,0.12549]
[1733763956947,24.30039258,225.53,225.47,0.12549]
[1733763957252,23.3254,225.54,225.47,0.12549]
[1733763957456,3.3254,225.54,225.47,0.25098]
[1733763959055,24.30039258,225.57,225.47,0.25098]
[1733763959261,20.0,225.54,225.47,0.25098]
[1733763960569,24.30039258,225.57,225.47,0.25098]
[1733763960933,20.0,225.54,225.47,0.25098]
[1733763962542,23.776884,225.57,225.47,0.25098]
[1733763962860,20.0,225.55,225.47,0.25098]
[1733763963162,3.84820858,225.59,225.47,0.25098]
[1733763963965,3.3247,225.59,225.49,0.25098]
[1733763964132,0.52350858,225.63,225.46,6.5711]
[1733763964133,3.3241,225.63,225.51,0.25098]
[1733763964459,3.3241,225.63,225.53,0.25098]
[1733763964764,3.3241,225.63,225.55,0.25098]
[1733763965137,0.52350858,225.62,225.5,0.25098]
[1733763965647,24.30039258,225.62,225.5,23.76727918]
[1733763965857,3.3241,225.63,225.52,0.12549]
[1733763966039,3.3241,225.63,225.53,0.12549]
[1733763966225,3.84760858,225.63,225.53,0.12549]
[1733763966632,3.84760858,225.63,225.51,0.25098]
[1733763966929,3.3241,225.63,225.53,0.12549]
[1733763967125,3.3241,225.63,225.53,0.25098]
[1733763967537,3.3235,225.67,225.55,0.25098]
[1733763967970,0.52350858,225.66,225.55,0.25098]
[1733763968158,0.52350858,225.66,225.49,1.5704]
[1733763968675,0.52350858,225.66,225.5,0.12549]
[1733763968968,0.52350858,225.66,225.49,1.5704]
[1733763968969,20.0,225.63,225.49,1.5704]
[1733763969172,23.776884,225.58,225.49,1.5704]
[1733763969340,23.776884,225.58,225.5,0.12549]
[1733763969537,24.30039258,225.58,225.5,0.12549]
[1733763969739,23.776884,225.54,225.5,0.12549]
[1733763969936,23.776884,225.54,225.46,6.5711]
[1733763970165,24.30039258,225.54,225.46,6.5711]
[1733763970345,24.30039258,225.54,225.47,0.12549]
[1733763970548,23.776884,225.54,225.47,0.12549]
[1733763970843,24.30039258,225.54,225.46,6.5711]
[1733763971172,24.30039258,225.54,225.47,0.12549]
[1733763972271,24.30039258,225.54,225.48,0.12549]
[1733763973569,23.776884,225.5,225.47,0.12549]
[1733763976473,23.776884,225.52,225.47,0.12549]
[1733763977657,23.776884,225.48,225.45,0.12549]
[1733763977947,24.30039258,225.48,225.41,6.0709]
[1733763978270,20.0,225.45,225.41,6.0709]
[1733763978523,23.776884,225.44,225.39,1.6386]
[1733763978647,0.52350858,225.43,225.36,6.0709]
[1733763979055,24.30039258,225.44,225.36,6.0709]
[1733763979271,24.30039258,225.44,225.37,0.12549]
[1733763979272,23.776884,225.44,225.37,0.12549]
[1733763979955,23.776884,225.44,225.37,0.25098]
[1733763981280,24.30039258,225.44,225.36,6.0709]
[1733763981482,23.776884,225.44,225.37,0.12549]
[1733763981653,20.0,225.49,225.37,0.12549]
[1733763981975,0.52350858,225.48,225.37,0.12549]
[1733763982179,0.52350858,225.49,225.37,0.12549]
[1733763982400,0.52350858,225.49,225.38,0.12549]
[1733763982986,23.776884,225.49,225.39,0.12549]
[1733763983969,3.326,225.5,225.41,0.12549]
[1733763984164,23.776884,225.55,225.41,0.25098]
[1733763984367,0.52350858,225.54,225.41,0.25098]
[1733763985298,23.776884,225.51,225.41,0.25098]
[1733763985602,0.52350858,225.5,225.41,0.25098]
[1733763985761,0.52350858,225.5,225.39,0.12549]
[1733763985964,0.52350858,225.5,225.37,0.12549]
[1733763985965,23.776884,225.47,225.37,0.12549]
[1733763986165,24.30039258,225.47,225.37,0.12549]
[1733763986690,23.776884,225.47,225.37,0.91635381]
[1733763986997,23.776884,225.5,225.4,0.12549]
[1733763987167,3.3257,225.51,225.41,0.12549]
[1733763987369,3.84880858,225.54,225.43,0.25098]
[1733763988676,23.776884,225.53,225.43,0.25098]
[1733763988868,24.30039258,225.53,225.43,0.25098]
[1733763989982,24.30039258,225.53,225.45,0.25098]
[1733763989983,23.776884,225.53,225.45,0.25098]
[1733763990189,3.3253,225.54,225.45,0.25098]
[1733763991799,6.6495,225.58,225.45,0.25098]
[1733763991800,3.3248,225.58,225.47,0.25098]
[1733763991994,0.52350858,225.57,225.47,0.25098]
[1733763992306,0.52350858,225.57,225.45,0.12549]
[1733763992492,0.52350858,225.57,225.45,0.25098]
[1733763993078,20.0,225.54,225.45,0.25098]
[1733763993280,24.30039258,225.53,225.45,0.25098]
[1733763994878,23.776884,225.51,225.44,6.0197]
[1733763995188,23.776884,225.51,225.42,1.6511]
[1733763995189,23.776884,225.47,225.42,1.6511]
[1733763995383,24.30039258,225.47,225.42,1.6511]
[1733763996606,23.776884,225.47,225.42,1.6511]
[1733763996986,3.3263,225.48,225.42,1.6511]
[1733763997189,23.776884,225.51,225.43,0.25098]
[1733763997376,0.52350858,225.5,225.43,0.25098]
[1733763998006,0.52350858,225.5,225.43,0.12549]
[1733763998209,23.776884,225.48,225.42,1.6511]
[1733763998522,0.52350858,225.47,225.42,1.6511]
[1733763999202,23.776884,225.48,225.42,1.6511]
[1733763999505,0.52350858,225.47,225.42,1.6511]
[1733764000783,24.30039258,225.48,225.42,1.6511]
[1733764000979,23.776884,225.46,225.42,1.6511]
[1733764002313,23.776884,225.44,225.42,1.6511]
[1733764002513,23.776884,225.44,225.39,6.0448]
[1733764004205,3.3262,225.49,225.4,0.25098]
[1733764004413,24.30039258,225.48,225.4,0.25098]
[1733764005497,23.776884,225.46,225.4,0.25098]
[1733764005695,24.30039258,225.46,225.39,6.0448]
[1733764006022,23.776884,225.46,225.39,6.0448]
[1733764009131,0.52350858,225.45,225.39,6.0448]
[1733764009503,23.776884,225.46,225.39,6.0448]
[1733764009825,0.52350858,225.45,225.39,6.0448]
[1733764010002,23.776884,225.46,225.39,6.0448]
[1733764010925,0.52350858,225.45,225.39,6.0448]
[1733764012699,3.85030858,225.45,225.39,6.0448]
[1733764012920,20.0,225.43,225.39,6.0448]
[1733764013115,20.0,225.43,225.37,1.519]
[1733764013116,0.52350858,225.42,225.37,1.519]
[1733764013314,24.30039258,225.42,225.37,1.519]
[1733764013729,0.52350858,225.42,225.37,1.519]
[1733764014101,0.52350858,225.43,225.37,1.519]
[1733764014302,23.776884,225.41,225.37,1.519]
[1733764014701,23.776884,225.41,225.38,0.12549]
[1733764015323,23.776884,225.41,225.38,0.25098]
[1733764016809,23.776884,225.44,225.38,0.25098]
[1733764020533,3.3262,225.48,225.38,0.25098]
[1733764021304,3.3258,225.51,225.4,0.25098]
[1733764021503,0.52350858,225.57,225.42,0.25098]
[1733764021730,0.52350858,225.57,225.44,0.12549]
[1733764021928,0.52350858,225.57,225.44,0.91613538]
[1733764022102,1.6582,225.61,225.44,0.91613538]
[1733764022103,0.52350858,225.6,225.44,0.91613538]
[1733764022303,0.52350858,225.6,225.44,10.07301911]
[1733764022504,0.52350858,225.6,225.48,6.5155]
[1733764022833,0.52350858,225.6,225.49,0.25098]
[1733764023016,0.52350858,225.62,225.49,0.25098]
[1733764023332,0.52350858,225.62,225.51,0.25098]
[1733764024131,24.30039258,225.62,225.51,0.25098]
[1733764024337,27.62459258,225.62,225.51,0.25098]
[1733764024828,23.776884,225.58,225.51,0.25098]
[1733764025040,23.776884,225.58,225.5,1.5251]
[1733764025041,0.52350858,225.57,225.5,1.5251]
[1733764026227,23.776884,225.56,225.5,1.5251]
[1733764026403,0.52350858,225.55,225.5,1.5251]
[1733764028222,3.3253,225.54,225.5,1.5251]
[1733764028555,3.3253,225.54,225.36,22.95922111]
[1733764028556,24.30039258,225.53,225.45,1.5885]
[1733764028712,23.776884,225.49,225.45,1.5885]
[1733764028915,24.30039258,225.49,225.45,1.5885]
[1733764029142,0.52350858,225.48,225.45,1.5885]
[1733764029447,23.776884,225.49,225.45,1.5885]
[1733764029743,23.776884,225.49,225.46,0.12549]
[1733764030143,23.776884,225.53,225.46,0.12549]
[1733764030649,23.776884,225.49,225.45,1.5885]
[1733764030828,0.52350858,225.48,225.45,1.5885]
[1733764031318,0.52350858,225.48,225.43,6.2428]
[1733764031517,23.776884,225.47,225.43,6.2428]
[1733764031909,3.84980858,225.48,225.43,6.2428]
[1733764031910,23.776884,225.49,225.44,0.12549]
[1733764032113,23.776884,225.5,225.44,0.25098]
[1733764032350,3.3252,225.55,225.44,0.25098]
[1733764032649,0.52350858,225.63,225.48,0.25098]
[1733764032862,0.52350858,225.63,225.48,15.20897693]
[1733764033140,0.52350858,225.63,225.53,0.12549]
[1733764033343,0.52350858,225.63,225.55,0.25098]
[1733764033560,3.3237,225.65,225.55,0.25098]
[1733764033740,3.3237,225.65,225.57,0.25098]
[1733764035161,23.776884,225.64,225.57,0.25098]
[1733764035732,0.52350858,225.63,225.57,0.25098]
[1733764036051,43.776884,225.61,225.56,6.0428]
[1733764036240,0.52350858,225.6,225.56,6.0428]
[1733764036757,43.776884,225.61,225.56,6.0428]
[1733764037744,23.776884,225.61,225.57,0.12549]
[1733764037928,23.776884,225.61,225.57,0.25098]
[1733764039271,23.776884,225.62,225.57,0.25098]
[1733764039969,23.776884,225.62,225.56,6.0428]
[1733764040262,23.776884,225.6,225.56,6.0428]
[1733764041449,23.656884,225.6,225.56,6.0428]
[1733764041973,3.3238,225.65,225.57,0.25098]
[1733764043647,23.776884,225.64,225.57,0.25098]
[1733764044172,0.52350858,225.73,225.57,14.54398591]
[1733764044373,3.3226,225.73,225.62,0.25098]
[1733764044670,3.3226,225.73,225.64,0.25098]
[1733764044874,3.3226,225.73,225.66,0.25098]
[1733764045072,3.322,225.77,225.66,0.91549181]
[1733764046103,1.06256798,225.8,225.66,15.20849772]
[1733764046374,1.06256798,225.8,225.69,14.54398591]
[1733764046674,0.5390594,225.8,225.73,0.25098]
[1733764050294,0.5390594,225.8,225.73,0.91524109]
[1733764051502,0.5390594,225.8,225.77,0.25098]
[1733764051702,3.3202,225.89,225.83,136.0609406]
[1733764051703,0.52350858,225.88,225.83,136.0609406]
[1733764051863,0.52350858,225.88,225.77,0.25098]
[1733764052060,0.52350858,225.88,225.77,0.12549]
[1733764052262,0.52350858,225.88,225.76,0.25098]
[1733764052797,3.3204,225.87,225.74,0.25098]
[1733764053385,0.52350858,225.86,225.75,0.12549]
[1733764053788,3.3204,225.87,225.77,0.12549]
[1733764055093,0.52350858,225.86,225.76,0.12549]
[1733764055287,0.52350858,225.86,225.75,0.12549]
[1733764055487,0.52350858,225.86,225.74,0.12549]
[1733764056479,0.52350858,225.86,225.75,0.12549]
[1733764057668,3.3204,225.87,225.75,14.29300591]
[1733764057982,0.52350858,225.86,225.75,0.12549]
[1733764058775,3.3204,225.87,225.75,0.12549]
[1733764058984,3.3204,225.87,225.76,0.25098]
[1733764059183,3.3204,225.87,225.78,0.25098]
[1733764061779,3.3204,225.87,225.77,0.12549]
[1733764062274,3.3204,225.87,225.76,15.20817696]
[1733764063807,0.52350858,225.86,225.74,14.54398591]
[1733764064103,0.52350858,225.86,225.73,20.66415757]
[1733764064104,0.52350858,225.86,225.73,14.29300591]
[1733764064394,3.3207,225.85,225.73,14.29300591]
[1733764064599,3.3207,225.85,225.74,0.12549]
[1733764064600,0.52350858,225.84,225.74,0.12549]
[1733764065410,0.52350858,225.84,225.74,0.25098]
[1733764065713,0.52350858,225.84,225.71,14.95730522]
[1733764065927,0.52350858,225.84,225.7,6.3956]
[1733764065928,3.321,225.83,225.7,6.3956]
[1733764066211,20.52350858,225.82,225.7,6.3956]
[1733764067102,20.52350858,225.82,225.71,0.12549]
[1733764067306,20.52350858,225.82,225.66,15.95100591]
[1733764067475,20.0,225.8,225.66,1.658]
[1733764067672,0.52350858,225.79,225.66,1.658]
[1733764068184,0.52350858,225.79,225.67,0.12549]
[1733764068583,0.52350858,225.79,225.67,0.25098]
[1733764068785,20.0,225.76,225.66,1.658]
[1733764068985,0.52350858,225.75,225.66,1.658]
[1733764069196,0.52350858,225.75,225.67,0.12549]
[1733764069977,0.52350858,225.75,225.66,1.658]
[1733764070310,0.52350858,225.75,225.59,22.27860591]
[1733764070484,0.52350858,225.75,225.61,0.12549]
[1733764070678,0.52350858,225.75,225.6,14.29300591]
[1733764070882,20.0,225.73,225.59,22.27860591]
[1733764071094,0.52350858,225.72,225.59,7.9856]
[1733764071301,20.0,225.71,225.59,7.9856]
[1733764071501,0.52350858,225.7,225.6,0.12549]
[1733764071721,0.52350858,225.7,225.6,14.41849591]
[1733764072009,0.52350858,225.73,225.63,0.12549]
[1733764072207,20.52350858,225.73,225.63,0.12549]
[1733764072520,20.52350858,225.73,225.63,0.25098]
[1733764072808,0.52350858,225.73,225.63,0.25098]
[1733764074816,20.0,225.74,225.64,0.12549]
[1733764074985,0.52350858,225.75,225.64,38.98543598]
[1733764075184,0.52350858,225.75,225.66,0.12549]
[1733764075501,0.52350858,225.75,225.66,24.027864]
[1733764076720,0.52350858,225.75,225.65,24.027864]
[1733764077395,0.52350858,225.75,225.65,0.12549]
[1733764077793,0.52350858,225.75,225.65,0.25098]
[1733764080823,0.52350858,225.75,225.66,14.29300591]
[1733764081001,23.84560858,225.76,225.67,23.902374]
[1733764081208,2.14630858,225.77,225.68,0.12549]
[1733764081688,0.52350858,225.79,225.7,0.12549]
[1733764084189,0.52350858,225.79,225.68,23.776884]
[1733764084190,20.0,225.79,225.68,23.776884]
[1733764084423,0.52350858,225.78,225.68,23.776884]
[1733764084593,0.52350858,225.78,225.66,23.902374]
[1733764084794,0.52350858,225.78,225.68,0.12549]
[1733764085397,0.52350858,225.78,225.66,0.12549]
[1733764085398,3.3219,225.77,225.66,0.12549]
[1733764085606,0.52350858,225.76,225.66,0.12549]
[1733764086332,0.52350858,225.76,225.65,0.25098]
[1733764086618,0.52350858,225.76,225.68,0.12549]
[1733764086924,0.52350858,225.78,225.68,0.12549]
[1733764088039,0.52350858,225.79,225.68,0.12549]
[1733764088601,0.52350858,225.79,225.66,24.027864]
[1733764088812,3.3218,225.78,225.66,0.12549]
[1733764089016,0.52350858,225.77,225.62,14.29300591]
[1733764089739,0.52350858,225.77,225.63,0.12549]
[1733764090103,3.84510858,225.79,225.63,0.12549]
[1733764090330,3.84510858,225.79,225.62,24.027864]
[1733764090636,3.84510858,225.79,225.59,7.9856]
[1733764090637,20.0,225.76,225.59,7.9856]
[1733764090937,20.0,225.71,225.59,7.9856]
[1733764091105,0.52350858,225.7,225.62,0.12549]
[1733764091305,6.4871,225.74,225.62,0.12549]
[1733764091306,0.52350858,225.73,225.62,0.12549]
[1733764091720,0.52350858,225.73,225.6,0.12549]
[1733764092110,3.84610858,225.73,225.62,23.902374]
[1733764092937,3.84610858,225.73,225.63,0.12549]
[1733764093435,23.3221,225.76,225.65,0.12549]
[1733764093604,0.52350858,225.75,225.65,0.12549]
[1733764094345,0.52350858,225.75,225.66,0.12549]
[1733764094631,3.3224,225.74,225.66,0.12549]
[1733764094931,0.52350858,225.73,225.65,23.776884]
[1733764095805,3.3227,225.72,225.65,23.776884]
[1733764096106,0.52350858,225.71,225.65,23.776884]
[1733764098037,0.52350858,225.71,225.6,23.902374]
[1733764098038,3.3229,225.7,225.6,23.902374]
[1733764098237,0.52350858,225.69,225.6,23.902374]
[1733764099426,0.52350858,225.69,225.61,0.12549]
[1733764099739,0.52350858,225.74,225.62,14.29300591]
[1733764099905,3.84590858,225.74,225.63,38.32086991]
[1733764100108,3.84590858,225.74,225.63,0.25098]
[1733764100542,3.84590858,225.74,225.65,0.25098]
[1733764101833,2.04600858,225.78,225.68,24.027864]
[1733764102136,0.52350858,225.82,225.68,38.9853259]
[1733764102344,3.3214,225.81,225.7,24.027864]
[1733764102506,3.84490858,225.81,225.7,24.69223577]
[1733764103607,0.52350858,225.8,225.7,24.69223577]
[1733764104035,0.52350858,225.8,225.7,24.027864]
[1733764104240,0.52350858,225.8,225.69,24.027864]
[1733764105135,0.52350858,225.8,225.69,23.10096749]
[1733764105432,0.52350858,225.8,225.69,0.25098]
[1733764105838,3.3216,225.79,225.69,0.25098]
[1733764106044,0.52350858,225.78,225.69,0.25098]
[1733764106247,0.52350858,225.79,225.69,0.25098]
[1733764107234,0.52350858,225.79,225.69,24.027864]
[1733764107914,0.52350858,225.79,225.7,14.29300591]
[1733764108246,4.9134,225.83,225.72,24.027864]
[1733764108247,0.52350858,225.82,225.72,24.027864]
[1733764108458,3.3213,225.81,225.72,24.027864]
[1733764108637,0.52350858,225.8,225.72,24.027864]
[1733764109025,0.52350858,225.8,225.68,15.89340591]
[1733764109026,0.52350858,225.8,225.71,0.12549]
[1733764110656,20.0,225.78,225.6,14.29300591]
[1733764110821,0.52350858,225.77,225.6,14.29300591]
[1733764111645,23.3221,225.76,225.61,14.41849591]
[1733764111824,0.52350858,225.75,225.63,0.12549]
[1733764112023,0.52350858,225.75,225.64,0.12549]
[1733764112424,0.52350858,225.75,225.64,0.25098]
[1733764113552,0.52350858,225.75,225.63,0.25098]
[1733764113723,4.93,225.74,225.63,0.25098]
[1733764113927,0.52350858,225.73,225.63,0.12549]
[1733764115032,0.52350858,225.73,225.62,0.25098]
[1733764119964,0.52350858,225.73,225.62,14.54398591]